fUST/lending_fUST_20250729
["ID","MTS","AMOUNT","RATE_DAILY","PERIOD"]
[375958775,1753800634498,-460.0,0.00018866,2]
[375958776,1753800634507,-454.39652137,0.00018866,2]
[375958777,1753800634517,-439.77191961,0.00018866,2]
[375958778,1753800634532,-460.0,0.00018866,2]
[375958779,1753800634541,-860.51,0.00018866,2]
[375958780,1753800634552,-460.0,0.00018866,2]
[375958781,1753800634562,-460.0,0.00018866,2]
[375958782,1753800634571,-460.0,0.00018866,2]
[375958783,1753800634581,-460.0,0.00018866,2]
[375958784,1753800634590,-460.0,0.00018866,2]
[375958785,1753800634600,-460.0,0.00018866,2]
[375958786,1753800634610,-460.0,0.00018866,2]
[375958787,1753800634619,-460.0,0.00018866,2]
[375958788,1753800634629,-1206.47,0.00018866,2]
[375958789,1753800634638,-460.0,0.00018866,2]
[375958790,1753800634648,-460.0,0.00018866,2]
[375958791,1753800634658,-397.14661756,0.00018866,2]
[375958792,1753800634667,-460.0,0.00018866,2]
[375958793,1753800634676,-460.0,0.00018866,2]
[375958794,1753800634686,-1057.81,0.00018866,2]
[375958795,1753800634695,-460.0,0.00018866,2]
[375958796,1753800634704,-460.0,0.00018866,2]
[375958797,1753800634713,-614.11,0.00018866,2]
[375958798,1753800634723,-460.0,0.00018866,2]
[375958799,1753800634733,-460.0,0.00018866,2]
[375958800,1753800634743,-899.08,0.00018866,2]
[375958801,1753800634752,-460.0,0.00018866,2]
[375958802,1753800634762,-628.16,0.00018866,2]
[375958803,1753800634773,-460.0,0.00018866,2]
[375958804,1753800634783,-460.0,0.00018866,2]
[375958805,1753800634793,-460.0,0.00018866,2]
[375958806,1753800634803,-460.0,0.00018866,2]
[375958807,1753800634812,-460.0,0.00018866,2]
[375958808,1753800634822,-460.0,0.00018866,2]
[375958809,1753800634831,-460.0,0.00018866,2]
[375958810,1753800634841,-1049.79,0.00018866,2]
[375958811,1753800634850,-460.0,0.00018866,2]
[375958812,1753800634860,-460.0,0.00018866,2]
[375958813,1753800634869,-460.0,0.00018866,2]
[375958814,1753800634878,-460.0,0.00018866,2]
[375958815,1753800634887,-469.26103203,0.00018866,2]
[375958816,1753800634897,-460.0,0.00018866,2]
[375958817,1753800634906,-460.0,0.00018866,2]
[375958818,1753800634915,-469.67369961,0.00018866,2]
[375958819,1753800634924,-460.0,0.00018866,2]
[375958820,1753800634933,-3850.65,0.00018866,2]
[375958821,1753800634943,-460.0,0.00018866,2]
[375958822,1753800634952,-460.0,0.00018866,2]
[375958823,1753800634962,-460.0,0.00018866,2]
[375958824,1753800634971,-460.0,0.00018866,2]
[375958825,1753800634981,-460.0,0.00018866,2]
[375958826,1753800634990,-460.0,0.00018866,2]
[375958827,1753800634999,-460.0,0.00018866,2]
[375958828,1753800635009,-776.66,0.00018866,2]
[375958829,1753800635019,-460.0,0.00018866,2]
[375958830,1753800635034,-460.0,0.00018866,2]
[375958831,1753800635044,-460.0,0.00018866,2]
[375958832,1753800635053,-460.0,0.00018866,2]
[375958833,1753800635063,-501.71563604,0.00018866,2]
[375958834,1753800635074,-627.52,0.00018866,2]
[375958835,1753800635085,-460.0,0.00018866,2]
[375958836,1753800635094,-460.0,0.00018866,2]
[375958837,1753800635104,-460.0,0.00018866,2]
[375958838,1753800635115,-844.32,0.00018866,2]
[375958839,1753800635126,-460.0,0.00018866,2]
[375958840,1753800635135,-526.21,0.00018866,2]
[375958841,1753800635145,-460.0,0.00018866,2]
[375958842,1753800635155,-460.0,0.00018866,2]
[375958843,1753800635165,-460.0,0.00018866,2]
[375958844,1753800635174,-460.0,0.00018866,2]
[375958845,1753800635184,-460.0,0.00018866,2]
[375958846,1753800635193,-617.38,0.00018866,2]
[375958847,1753800635203,-460.0,0.00018866,2]
[375958848,1753800635212,-460.0,0.00018866,2]
[375958849,1753800635222,-460.0,0.00018866,2]
[375958850,1753800635231,-460.0,0.00018866,2]
[375958851,1753800635241,-3082.36,0.00018866,2]
[375958852,1753800635250,-460.0,0.00018866,2]
[375958853,1753800635260,-460.0,0.00018866,2]
[375958854,1753800635269,-460.0,0.00018866,2]
[375958855,1753800635283,-460.0,0.00018866,2]
[375958856,1753800635293,-460.0,0.00018866,2]
[375958857,1753800635302,-461.33514316,0.00018866,2]
[375958858,1753800635311,-460.0,0.00018866,2]
[375958859,1753800635321,-460.0,0.00018866,2]
[375958860,1753800635330,-460.0,0.00018866,2]
[375958861,1753800635340,-460.0,0.00018866,2]
[375958862,1753800635349,-697.91,0.00018866,2]
[375958863,1753800635358,-460.0,0.00018866,2]
[375958864,1753800635368,-460.0,0.00018866,2]
[375958865,1753800635378,-460.0,0.00018866,2]
[375958866,1753800635388,-460.0,0.00018866,2]
[375958867,1753800635397,-460.0,0.00018866,2]
[375958868,1753800635406,-460.0,0.00018866,2]
[375958869,1753800635415,-460.0,0.00018866,2]
[375958870,1753800635425,-460.0,0.00018866,2]
[375958871,1753800635434,-460.0,0.00018866,2]
[375958872,1753800635444,-3272.03,0.00018866,2]
[375958873,1753800635453,-460.0,0.00018866,2]
[375958874,1753800635462,-316.89,0.00018866,2]
[375958875,1753800635472,-460.0,0.00018866,2]
[375958876,1753800635482,-460.0,0.00018866,2]
[375958877,1753800635491,-722.58,0.00018866,2]
[375958878,1753800635500,-460.0,0.00018866,2]
[375958879,1753800635509,-460.0,0.00018866,2]
[375958880,1753800635519,-378.62376399,0.00018866,2]
[375958881,1753800635532,-460.0,0.00018866,2]
[375958882,1753800635542,-460.0,0.00018866,2]
[375958883,1753800635551,-460.0,0.00018866,2]
[375958884,1753800635560,-460.0,0.00018866,2]
[375958885,1753800635569,-460.0,0.00018866,2]
[375958886,1753800635583,-727.79,0.00018866,2]
[375958887,1753800635596,-460.0,0.00018866,2]
[375958888,1753800635608,-460.0,0.00018866,2]
[375958889,1753800635621,-460.0,0.00018866,2]
[375958890,1753800635633,-460.0,0.00018866,2]
[375958891,1753800635643,-1377.92,0.00018866,2]
[375958892,1753800635653,-460.0,0.00018866,2]
[375958893,1753800635666,-461.99394899,0.00018866,2]
[375958894,1753800635677,-460.0,0.00018866,2]
[375958895,1753800635688,-460.0,0.00018866,2]
[375958896,1753800635701,-500.0,0.00018866,2]
[375958897,1753800635712,-460.0,0.00018866,2]
[375958898,1753800635725,-460.0,0.00018866,2]
[375958899,1753800635737,-636.05,0.00018866,2]
[375958900,1753800635748,-460.0,0.00018866,2]
[375958901,1753800635760,-460.0,0.00018866,2]
[375958902,1753800635774,-2562.35,0.00018866,2]
[375958903,1753800635785,-460.0,0.00018866,2]
[375958904,1753800635796,-486.18,0.00018866,2]
[375958905,1753800635807,-460.0,0.00018866,2]
[375958906,1753800635819,-5693.89,0.00018866,2]
[375958907,1753800635831,-460.0,0.00018866,2]
[375958908,1753800635842,-176.92246929,0.00018866,2]
[375958909,1753800635852,-2337.27,0.00018866,2]
[375958910,1753800635864,-460.0,0.00018866,2]
[375958911,1753800635876,-642.06,0.00018866,2]
[375958912,1753800635888,-460.0,0.00018866,2]
[375958913,1753800635899,-460.0,0.00018866,2]
[375958914,1753800635911,-460.0,0.00018866,2]
[375958915,1753800635921,-460.0,0.00018866,2]
[375958916,1753800635931,-460.0,0.00018866,2]
[375958917,1753800635943,-2892.75,0.00018866,2]
[375958918,1753800635954,-2191.59,0.00018866,2]
[375958919,1753800635965,-460.0,0.00018866,2]
[375958920,1753800635976,-460.0,0.00018866,2]
[375958921,1753800635988,-595.83,0.00018866,2]
[375958922,1753800636000,-460.0,0.00018866,2]
[375958923,1753800636012,-575.97609992,0.00018866,2]
[375958924,1753800636027,-460.0,0.00018866,2]
[375958925,1753800636041,-517.85578648,0.00018866,2]
[375958926,1753800636053,-460.0,0.00018866,2]
[375958927,1753800636067,-460.0,0.00018866,2]
[375958928,1753800636079,-249.72293544,0.00018866,2]
[375958929,1753800636093,-460.0,0.00018866,2]
[375958930,1753800636104,-460.0,0.00018866,2]
[375958931,1753800636114,-450.40439914,0.00018866,2]
[375958932,1753800636125,-460.0,0.00018866,2]
[375958933,1753800636135,-499.77,0.00018866,2]
[375958934,1753800636147,-460.0,0.00018866,2]
[375958935,1753800636159,-460.0,0.00018866,2]
[375958936,1753800636170,-460.0,0.00018866,2]
[375958937,1753800636184,-460.0,0.00018866,2]
[375958938,1753800636196,-460.0,0.00018866,2]
[375958939,1753800636208,-460.0,0.00018866,2]
[375958940,1753800636218,-460.0,0.00018866,2]
[375958941,1753800636229,-460.0,0.00018866,2]
[375958942,1753800636240,-2657.12,0.00018866,2]
[375958943,1753800636251,-460.0,0.00018866,2]
[375958944,1753800636263,-776.03,0.00018866,2]
[375958945,1753800636278,-460.0,0.00018866,2]
[375958946,1753800636288,-460.0,0.00018866,2]
[375958947,1753800636298,-460.0,0.00018866,2]
[375958948,1753800636308,-500.0,0.00018866,2]
[375958949,1753800636318,-460.0,0.00018866,2]
[375958950,1753800636329,-460.0,0.00018866,2]
[375958951,1753800636340,-460.0,0.00018866,2]
[375958952,1753800636351,-460.0,0.00018866,2]
[375958953,1753800636362,-460.0,0.00018866,2]
[375958954,1753800636373,-460.0,0.00018866,2]
[375958955,1753800636383,-460.0,0.00018866,2]
[375958956,1753800636394,-460.0,0.00018866,2]
[375958957,1753800636404,-460.0,0.00018866,2]
[375958958,1753800636415,-1930.23,0.00018866,2]
[375958959,1753800636425,-460.0,0.00018866,2]
[375958960,1753800636435,-460.0,0.00018866,2]
[375958961,1753800636446,-935.88,0.00018866,2]
[375958962,1753800636457,-460.0,0.00018866,2]
[375958963,1753800636468,-296.08122966,0.00018866,2]
[375958964,1753800636480,-460.0,0.00018866,2]
[375958965,1753800636490,-460.0,0.00018866,2]
[375958966,1753800636501,-460.0,0.00018866,2]
[375958967,1753800636512,-326.18110717,0.00018866,2]
[375958968,1753800636527,-505.26,0.00018866,2]
[375958969,1753800636538,-460.0,0.00018866,2]
[375958970,1753800636549,-460.0,0.00018866,2]
[375958971,1753800636560,-460.0,0.00018866,2]
[375958972,1753800636571,-460.0,0.00018866,2]
[375958973,1753800636583,-460.0,0.00018866,2]
[375958974,1753800636594,-500.0,0.00018866,2]
[375958975,1753800636605,-500.0,0.00018867,2]
[375958976,1753800636616,-500.0,0.00018867,2]
[375958977,1753800636626,-375.36496512,0.00018867,2]
[375958978,1753800636637,-500.0,0.00018867,2]
[375958979,1753800636648,-500.0,0.00018867,2]
[375958980,1753800636659,-500.0,0.00018867,2]
[375958981,1753800636670,-500.0,0.00018867,2]
[375958982,1753800636682,-500.0,0.00018867,2]
[375958983,1753800636693,-460.0,0.00018868,2]
[375958984,1753800636704,-460.0,0.00018868,2]
[375958985,1753800636715,-460.0,0.00018868,2]
[375958986,1753800636726,-460.0,0.00018868,2]
[375958987,1753800636736,-460.0,0.00018868,2]
[375958988,1753800636748,-460.0,0.00018868,2]
[375958989,1753800636759,-460.0,0.00018868,2]
[375958990,1753800636770,-460.0,0.00018868,2]
[375958991,1753800636785,-8262.35,0.00018868,2]
[375958992,1753800636796,-1766.23,0.00018868,2]
[375958993,1753800636807,-2203.31,0.00018868,2]
[375958994,1753800636817,-1941.09,0.00018868,2]
[375958995,1753800636828,-460.0,0.00018868,2]
[375958996,1753800636839,-3354.1,0.00018868,2]
[375958997,1753800636849,-743.81,0.00018868,2]
[375958998,1753800636859,-2483.85,0.00018868,2]
[375958999,1753800636870,-500.0,0.00018873,2]
[375959000,1753800636881,-500.0,0.00018873,2]
[375959001,1753800636892,-500.0,0.00018873,2]
[375959002,1753800636902,-2195.46220616,0.000189,2]
[375959003,1753800636913,-675.20075531,0.000189,2]
[375959004,1753800636924,-200.12,0.00019,2]
[375959005,1753800636934,-12505.34053858,0.0001904,2]
[375959006,1753800636945,-1884.19742642,0.0001904,2]
[375959007,1753800636956,-163.0,0.00019068,3]
[375959008,1753800636966,-2195.46220602,0.00019072,2]
[375959009,1753800636977,-356.877341,0.000191,2]
[375959010,1753800636988,-578.1881624,0.000191,2]
[375959011,1753800636999,-320.2107096,0.000191,2]
[375959012,1753800637010,-578.1881624,0.000191,2]
[375959013,1753800637021,-577.9763186,0.00019106,2]
[375959014,1753800637037,-460.0,0.0001914,2]
[375959015,1753800637048,-460.0,0.0001914,2]
[375959016,1753800637059,-460.0,0.0001914,2]
[375959017,1753800637070,-460.0,0.0001914,2]
[375959018,1753800637083,-465.20376961,0.0001914,2]
[375959019,1753800637093,-176.20760086,0.0001914,2]
[375959020,1753800637120,-283.79239914,0.0001914,2]
[375959021,1753800637131,-460.0,0.0001914,2]
[375959022,1753800637142,-460.0,0.0001914,2]
[375959023,1753800637153,-460.0,0.0001914,2]
[375959024,1753800637164,-460.0,0.0001914,2]
[375959025,1753800637175,-272.21067545,0.0001914,2]
[375959026,1753800637189,-187.78932455,0.0001914,2]
[375959027,1753800637199,-460.0,0.0001914,2]
[375959028,1753800637211,-460.0,0.0001914,2]
[375959029,1753800637222,-460.0,0.0001914,2]
[375959030,1753800637233,-460.0,0.0001914,2]
[375959031,1753800637243,-460.0,0.0001914,2]
[375959032,1753800637254,-460.0,0.0001914,2]
[375959033,1753800637265,-460.0,0.0001914,2]
[375959034,1753800637276,-460.0,0.0001914,2]
[375959035,1753800637287,-506.74749283,0.0001914,2]
[375959036,1753800637300,-249.73250717,0.0001914,2]
[375959037,1753800637310,-460.0,0.0001914,2]
[375959038,1753800637321,-853.4,0.0001914,2]
[375959039,1753800637331,-460.0,0.0001914,2]
[375959040,1753800637342,-375.88749283,0.0001914,2]
[375959059,1753800638220,-460.0,0.00018866,2]
[375959060,1753800638229,-460.0,0.00018866,2]
[375959061,1753800638239,-460.0,0.00018866,2]
[375959062,1753800638248,-460.0,0.00018866,2]
[375959063,1753800638258,-83.04644594,0.0001914,2]
[375959064,1753800638268,-460.0,0.0001914,2]
[375959065,1753800638278,-460.0,0.0001914,2]
[375959066,1753800638288,-460.0,0.0001914,2]
[375959067,1753800638297,-460.0,0.0001914,2]
[375959068,1753800638306,-460.0,0.0001914,2]
[375959071,1753800638315,-460.0,0.0001914,2]
[375959073,1753800638324,-460.0,0.0001914,2]
[375959075,1753800638334,-452.79079048,0.0001914,2]
[375959077,1753800638343,-478.07262341,0.0001914,2]
[375959079,1753800638352,-460.0,0.0001914,2]
[375959081,1753800638362,-460.0,0.0001914,2]
[375959083,1753800638371,-292.00622473,0.0001914,2]
[375959085,1753800638380,-460.0,0.0001914,2]
[375959086,1753800638389,-460.0,0.0001914,2]
[375959087,1753800638398,-460.0,0.0001914,2]
[375959088,1753800638407,-460.0,0.0001914,2]
[375959089,1753800638417,-460.0,0.0001914,2]
[375959090,1753800638427,-460.0,0.0001914,2]
[375959091,1753800638436,-460.0,0.0001914,2]
[375959092,1753800638445,-428.05651772,0.0001914,2]
[375959093,1753800638457,-31.94348228,0.0001914,2]
[375959094,1753800638466,-460.0,0.0001914,2]
[375959095,1753800638476,-84.05651772,0.0001914,2]
[375959096,1753800638487,-303.5289,0.0001914,2]
[375959124,1753800640016,-766.45940004,0.00018866,2]
[375959126,1753800640033,-284.35059996,0.00018866,2]
[375959128,1753800640042,-460.0,0.00018866,2]
[375959130,1753800640052,-72.41458228,0.0001914,2]
[375959132,1753800640061,-460.0,0.0001914,2]
[375959134,1753800640071,-460.0,0.0001914,2]
[375959136,1753800640080,-460.0,0.0001914,2]
[375959137,1753800640089,-327.63571021,0.0001914,2]
[375959139,1753800640101,-132.36428979,0.0001914,2]
[375959141,1753800640113,-460.0,0.0001914,2]
[375959143,1753800640124,-460.0,0.0001914,2]
[375959145,1753800640134,-460.0,0.0001914,2]
[375959147,1753800640144,-460.0,0.0001914,2]
[375959149,1753800640153,-460.0,0.0001914,2]
[375959151,1753800640163,-460.0,0.0001914,2]
[375959153,1753800640172,-460.0,0.0001914,2]
[375959155,1753800640182,-460.0,0.0001914,2]
[375959157,1753800640192,-1010.66307546,0.0001914,2]
[375959159,1753800640205,-105.71692454,0.0001914,2]
[375959161,1753800640214,-847.11,0.0001914,2]
[375959163,1753800640226,-460.0,0.0001914,2]
[375959165,1753800640236,-487.76,0.0001914,2]
[375959166,1753800640245,-460.0,0.0001914,2]
[375959167,1753800640255,-460.0,0.0001914,2]
[375959168,1753800640264,-460.0,0.0001914,2]
[375959169,1753800640274,-494.39,0.0001914,2]
[375959170,1753800640290,-460.0,0.0001914,2]
[375959171,1753800640299,-460.0,0.0001914,2]
[375959172,1753800640310,-460.0,0.0001914,2]
[375959173,1753800640319,-460.0,0.0001914,2]
[375959174,1753800640328,-530.05406527,0.0001914,2]
[375959175,1753800640337,-460.0,0.0001914,2]
[375959176,1753800640347,-604.7956408,0.0001914,2]
[375959177,1753800640356,-2398.63,0.0001914,2]
[375959178,1753800640365,-460.0,0.0001914,2]
[375959179,1753800640375,-460.0,0.0001914,2]
[375959180,1753800640385,-460.0,0.0001914,2]
[375959181,1753800640395,-460.0,0.0001914,2]
[375959182,1753800640405,-153.161031,0.0001914,2]
[375959183,1753800640419,-465.48932078,0.0001914,2]
[375959184,1753800640429,-460.0,0.0001914,2]
[375959185,1753800640440,-460.0,0.0001914,2]
[375959186,1753800640449,-460.0,0.0001914,2]
[375959187,1753800640459,-437.46997992,0.0001914,2]
[375959188,1753800640469,-623.49,0.0001914,2]
[375959189,1753800640479,-460.0,0.0001914,2]
[375959190,1753800640489,-460.0,0.0001914,2]
[375959191,1753800640499,-460.0,0.0001914,2]
[375959192,1753800640509,-860.51,0.0001914,2]
[375959193,1753800640518,-460.0,0.0001914,2]
[375959194,1753800640532,-464.03122356,0.0001914,2]
[375959195,1753800640542,-460.0,0.0001914,2]
[375959196,1753800640551,-422.56310075,0.0001914,2]
[375959197,1753800640561,-460.0,0.0001914,2]
[375959198,1753800640571,-460.0,0.0001914,2]
[375959199,1753800640580,-784.04021845,0.0001914,2]
[375959200,1753800640849,-422.42978155,0.0001914,2]
[375959201,1753800640859,-460.0,0.0001914,2]
[375959202,1753800640868,-460.0,0.0001914,2]
[375959203,1753800640877,-1057.81,0.0001914,2]
[375959204,1753800640887,-460.0,0.0001914,2]
[375959205,1753800640896,-467.30681667,0.0001914,2]
[375959206,1753800640905,-460.0,0.0001914,2]
[375959207,1753800640914,-899.08,0.0001914,2]
[375959208,1753800640924,-460.0,0.0001914,2]
[375959209,1753800640934,-628.16,0.0001914,2]
[375959210,1753800640943,-460.0,0.0001914,2]
[375959211,1753800640953,-460.0,0.0001914,2]
[375959212,1753800640962,-460.0,0.0001914,2]
[375959213,1753800640971,-460.0,0.0001914,2]
[375959214,1753800640981,-460.0,0.0001914,2]
[375959216,1753800640991,-460.0,0.0001914,2]
[375959218,1753800641000,-460.0,0.0001914,2]
[375959220,1753800641009,-460.0,0.0001914,2]
[375959222,1753800641019,-460.0,0.0001914,2]
[375959224,1753800641034,-460.0,0.0001914,2]
[375959226,1753800641044,-217.33857949,0.0001914,2]
[375959228,1753800641054,-3850.65,0.0001914,2]
[375959230,1753800641063,-466.66142418,0.0001914,2]
[375959232,1753800641072,-460.0,0.0001914,2]
[375959234,1753800641082,-460.0,0.0001914,2]
[375959235,1753800641091,-460.0,0.0001914,2]
[375959238,1753800641102,-776.66,0.0001914,2]
[375959240,1753800641113,-169.50809776,0.0001914,2]
[375959242,1753800641128,-120.12246727,0.0001914,2]
[375959244,1753800641138,-460.0,0.0001914,2]
[375959246,1753800641148,-460.0,0.0001914,2]
[375959248,1753800641158,-460.0,0.0001914,2]
[375959250,1753800641167,-627.52,0.0001914,2]
[375959252,1753800641176,-539.15690692,0.0001914,2]
[375959254,1753800641186,-460.0,0.0001914,2]
[375959256,1753800641195,-844.32,0.0001914,2]
[375959258,1753800641205,-526.21,0.0001914,2]
[375959260,1753800641215,-460.0,0.0001914,2]
[375959262,1753800641225,-460.0,0.0001914,2]
[375959264,1753800641234,-118.28979349,0.0001914,2]
[375959267,1753800641250,-341.71020651,0.0001914,2]
[375959269,1753800641260,-460.0,0.0001914,2]
[375959271,1753800641270,-617.38,0.0001914,2]
[375959273,1753800641282,-460.0,0.0001914,2]
[375959275,1753800641292,-460.0,0.0001914,2]
[375959277,1753800641302,-460.0,0.0001914,2]
[375959279,1753800641312,-3082.36,0.0001914,2]
[375959281,1753800641321,-460.0,0.0001914,2]
[375959283,1753800641331,-460.0,0.0001914,2]
[375959285,1753800641340,-460.0,0.0001914,2]
[375959287,1753800641350,-460.0,0.0001914,2]
[375959290,1753800641359,-460.0,0.0001914,2]
[375959291,1753800641369,-460.0,0.0001914,2]
[375959294,1753800641379,-697.91,0.0001914,2]
[375959295,1753800641388,-460.0,0.0001914,2]
[375959298,1753800641398,-67.03749419,0.0001914,2]
[375959300,1753800641410,-392.96250581,0.0001914,2]
[375959302,1753800641419,-460.0,0.0001914,2]
[375959304,1753800641429,-278.67821219,0.0001914,2]
[375959306,1753800641440,-181.32178781,0.0001914,2]
[375959308,1753800641450,-460.0,0.0001914,2]
[375959310,1753800641459,-827.96045653,0.0001914,2]
[375959496,1753800643153,-460.0,0.00018866,2]
[375959498,1753800643163,-366.63156234,0.0001914,2]
[375959501,1753800643175,-2077.43798113,0.0001914,2]
[375959503,1753800643185,-460.0,0.0001914,2]
[375959505,1753800643195,-460.0,0.0001914,2]
[375959508,1753800643205,-722.58,0.0001914,2]
[375959511,1753800643214,-460.0,0.0001914,2]
[375959513,1753800643223,-460.0,0.0001914,2]
[375959516,1753800643234,-323.73824741,0.0001914,2]
[375959519,1753800643243,-460.0,0.0001914,2]
[375959522,1753800643253,-727.79,0.0001914,2]
[375959524,1753800643263,-1377.92,0.0001914,2]
[375959526,1753800643273,-460.0,0.0001914,2]
[375959528,1753800643285,-460.0,0.0001914,2]
[375959530,1753800643295,-460.0,0.0001914,2]
[375959532,1753800643304,-460.0,0.0001914,2]
[375959534,1753800643314,-636.05,0.0001914,2]
[375959536,1753800643323,-460.0,0.0001914,2]
[375959538,1753800643333,-2562.35,0.0001914,2]
[375959540,1753800643342,-486.18,0.0001914,2]
[375959542,1753800643352,-460.0,0.0001914,2]
[375959544,1753800643362,-5693.89,0.0001914,2]
[375959546,1753800643372,-2337.27,0.0001914,2]
[375959548,1753800643382,-249.57021664,0.0001914,2]
[375959551,1753800643394,-392.48978336,0.0001914,2]
[375959553,1753800643403,-460.0,0.0001914,2]
[375959555,1753800643413,-460.0,0.0001914,2]
[375959558,1753800643429,-460.0,0.0001914,2]
[375959560,1753800643443,-2892.75,0.0001914,2]
[375959562,1753800643453,-2191.59,0.0001914,2]
[375959564,1753800643464,-460.0,0.0001914,2]
[375959566,1753800643475,-595.83,0.0001914,2]
[375959589,1753800643681,-460.0,0.0001914,2]
[375959591,1753800643693,-460.0,0.0001914,2]
[375959594,1753800643703,-460.0,0.0001914,2]
[375959596,1753800643712,-499.77,0.0001914,2]
[375959598,1753800643721,-460.0,0.0001914,2]
[375959600,1753800643731,-460.0,0.0001914,2]
[375959602,1753800643740,-460.0,0.0001914,2]
[375959604,1753800643749,-460.0,0.0001914,2]
[375959606,1753800643758,-460.0,0.0001914,2]
[375959608,1753800643767,-2657.12,0.0001914,2]
[375959610,1753800643779,-460.0,0.0001914,2]
[375959612,1753800643789,-776.03,0.0001914,2]
[375959614,1753800643799,-460.0,0.0001914,2]
[375959616,1753800643810,-460.0,0.0001914,2]
[375959618,1753800643820,-460.0,0.0001914,2]
[375959620,1753800643829,-460.0,0.0001914,2]
[375959622,1753800643838,-1930.23,0.0001914,2]
[375959624,1753800643848,-460.0,0.0001914,2]
[375959626,1753800643857,-935.88,0.0001914,2]
[375959628,1753800643866,-460.0,0.0001914,2]
[375959630,1753800643876,-151.0,0.0001914,2]
[375959632,1753800643886,-505.26,0.0001914,2]
[375959634,1753800643896,-151.0,0.0001914,2]
[375959636,1753800643905,-460.0,0.0001914,2]
[375959638,1753800643915,-460.0,0.0001914,2]
[375959640,1753800643925,-460.0,0.0001914,2]
[375959642,1753800643934,-1050.81,0.0001914,2]
[375959644,1753800643945,-947.97822293,0.00019141,2]
[375959646,1753800643954,-1096.056931,0.00019141,2]
[375959648,1753800643964,-213.76096,0.00019141,2]
[375959650,1753800643973,-213.76096,0.00019141,2]
[375959652,1753800643983,-153.181708,0.00019141,2]
[375959654,1753800643992,-325.0,0.00019141,2]
[375959656,1753800644002,-151.0,0.00019141,2]
[375959658,1753800644011,-151.0,0.00019141,2]
[375959661,1753800644021,-325.0,0.00019141,2]
[375959663,1753800644036,-151.0,0.00019142,2]
[375959665,1753800644045,-151.0,0.00019142,2]
[375959667,1753800644054,-151.0,0.00019142,2]
[375959669,1753800644064,-151.0,0.00019142,2]
[375959670,1753800644074,-222.755139,0.00019142,2]
[375959673,1753800644083,-222.755139,0.00019142,2]
[375959675,1753800644093,-1096.056931,0.00019142,2]
[375959677,1753800644102,-1096.056931,0.00019142,2]
[375959678,1753800644112,-213.76096,0.00019142,2]
[375959681,1753800644122,-213.76096,0.00019142,2]
[375959683,1753800644131,-460.0,0.00019142,2]
[375959685,1753800644141,-460.0,0.00019142,2]
[375959687,1753800644150,-460.0,0.00019142,2]
[375959689,1753800644160,-460.0,0.00019142,2]
[375959691,1753800644172,-452.05898746,0.00019142,2]
[375959693,1753800644182,-460.0,0.00019142,2]
[375959695,1753800644191,-8262.35,0.00019142,2]
[375959697,1753800644212,-200.0,0.00019142,15]
[375959699,1753800644225,-200.0,0.00019142,15]